bitfinex/quotes_ETHUSD_20251108
["timestamp","ask_amount","ask_price","bid_price","bid_amount"]
[1762627708923,0.1514,3403.9,3403.8,8.00000074]
[1762627708924,0.005,3403.9,3403.8,8.00000074]
[1762627709111,0.27913437,3403.9,3403.8,2.93789294]
[1762627709310,0.44353437,3403.9,3403.8,2.93789294]
[1762627709915,0.27913437,3403.9,3403.8,2.93789294]
[1762627710229,0.62703437,3403.9,3403.8,2.93789294]
[1762627713597,0.62703437,3403.9,3403.7,0.1464]
[1762627713598,1.00873437,3403.9,3403.7,0.1464]
[1762627713925,0.66183437,3403.8,3403.7,0.1464]
[1762627714106,0.66183437,3403.8,3403.7,3.08437925]
[1762627715099,0.66166051,3403.8,3403.7,3.08437925]
[1762627715300,0.66166051,3403.8,3403.7,0.1464]
[1762627715627,0.66166051,3403.8,3403.7,2.93797925]
[1762627715830,0.66166051,3403.8,3403.5,2.93813524]
[1762627716046,0.43456051,3403.7,3403.3,0.1464]
[1762627716200,0.27396051,3403.6,3403.4,2.93822002]
[1762627716528,0.65786051,3403.5,3403.4,2.93822002]
[1762627716708,0.82226051,3403.5,3403.2,1.259712]
[1762627716907,0.0016,3403.3,3403.2,4.1981229]
[1762627717208,0.27556051,3403.3,3403.2,4.1981229]
[1762627717597,0.27396051,3403.3,3403.2,4.6736229]
[1762627717792,0.27396051,3403.3,3403.2,4.1981229]
[1762627718226,0.27396051,3403.3,3403.2,4.6736229]
[1762627718536,0.43836051,3403.3,3403.2,4.1981229]
[1762627719872,0.43836051,3403.3,3403.2,2.9384109]
[1762627720226,0.82006051,3403.3,3403.1,3.08488048]
[1762627720565,0.27776051,3403.2,3403.1,3.08488048]
[1762627723628,0.27881743,3403.2,3403.1,3.08488048]
[1762627724960,0.66271743,3403.2,3403.1,3.08488048]
[1762627725866,0.66271743,3403.2,3403.1,0.1464]
[1762627726036,0.66271743,3403.2,3403.0,6.79951919]
[1762627726241,0.002,3403.8,3403.0,3.86099998]
[1762627726242,0.81951743,3403.1,3403.0,3.86099998]
[1762627726762,0.81951743,3403.1,3403.0,0.001]
[1762627726950,1.34170677,3403.1,3403.0,0.001]
[1762627727476,4.28020402,3403.1,3403.0,0.001]
[1762627728476,9.34231182,3403.1,3403.0,0.001]
[1762627730167,4.28020402,3403.1,3403.0,0.001]
[1762627730853,1.19530677,3403.1,3403.0,0.001]
[1762627731678,4.13380402,3403.1,3403.0,0.001]
[1762627731847,1.19530677,3403.1,3403.0,0.001]
[1762627732279,4.13380402,3403.1,3403.0,0.001]
[1762627732632,1.19530677,3403.1,3403.0,0.001]
[1762627734008,0.81520677,3403.1,3403.0,0.001]
[1762627734220,0.82111743,3403.1,3403.0,0.001]
[1762627736711,0.43941743,3403.1,3403.0,0.001]
[1762627737419,0.27501743,3403.1,3403.0,3.4089836]
[1762627737576,0.42141743,3403.1,3403.0,3.4089836]
[1762627737969,0.42141743,3403.1,3403.0,3.8779836]
[1762627738709,0.42141743,3403.1,3403.0,3.4089836]
[1762627738910,0.42141743,3403.1,3403.0,0.4704]
[1762627739108,0.42141743,3403.1,3403.0,3.4089836]
[1762627740109,0.27501743,3403.1,3403.0,3.4089836]
[1762627740523,0.27501743,3403.1,3403.0,3.8779836]
[1762627740827,0.27501743,3403.1,3403.0,4.86815668]
[1762627741906,0.27501743,3403.1,3403.0,2.9395836]
[1762627742537,0.27501743,3403.1,3403.0,3.4106836]
[1762627742710,0.27501743,3403.1,3403.0,3.8770836]
[1762627743435,0.27501743,3403.1,3403.0,3.8711636]
[1762627744012,0.27501743,3403.1,3403.0,3.8721636]
[1762627744341,0.27701743,3403.1,3403.0,3.8721636]
[1762627745039,0.27701743,3403.1,3403.0,2.9346636]
[1762627747501,0.27701743,3403.1,3403.0,3.4057636]
[1762627747936,0.27701743,3403.1,3403.0,4.95388732]
[1762627749167,0.27701743,3403.1,3403.0,5.23090475]
[1762627751536,0.27701743,3403.1,3403.0,4.95388732]
[1762627753781,0.27701743,3403.1,3403.0,8.8138873]
[1762627756169,0.44141743,3403.1,3403.0,6.79466358]
[1762627759714,0.44141743,3403.1,3403.0,2.9346636]
[1762627760268,0.44141743,3403.1,3403.0,0.001]
[1762627760269,0.82311743,3403.1,3403.0,0.001]
[1762627760472,0.96951743,3403.1,3403.0,0.001]
[1762627764218,0.58781743,3403.1,3403.0,0.001]
[1762627764399,0.94044073,3403.1,3403.0,0.001]
[1762627765124,1.32214073,3403.1,3403.0,0.001]
[1762627767025,3.90801468,3403.1,3403.0,0.001]
[1762627767620,0.80731743,3403.1,3403.0,0.001]
[1762627767821,0.97171743,3403.1,3403.0,0.001]
[1762627768816,3.91021468,3403.1,3403.0,0.001]
[1762627770725,0.66091743,3403.1,3403.0,0.001]
[1762627770896,0.27701743,3403.1,3403.0,0.4721]
[1762627771717,0.58781743,3403.1,3403.0,0.001]
[1762627771913,1.32212341,3403.1,3403.0,0.001]
[1762627772235,4.26062066,3403.1,3403.0,0.001]
[1762627772433,1.32212341,3403.1,3403.0,0.001]
[1762627772954,4.26062066,3403.1,3403.0,0.001]
[1762627773746,1.32212341,3403.1,3403.0,0.001]
[1762627773949,0.77602341,3403.1,3403.0,0.4744]
[1762627774148,0.42341743,3403.1,3403.0,0.4744]
[1762627774351,0.42341743,3403.1,3403.0,3.4129836]
[1762627774550,0.42341743,3403.1,3403.0,3.8992836]
[1762627774754,0.27701743,3403.1,3403.0,3.8992836]
[1762627774913,0.27701743,3403.1,3403.0,4.89158664]
[1762627775114,0.27701743,3403.1,3403.0,1.95300304]
[1762627775346,0.27701743,3403.1,3403.0,3.8992836]
[1762627778059,0.27701743,3403.1,3403.0,7.75928358]
[1762627783826,0.27701743,3403.1,3403.0,9.16539558]
[1762627784172,0.27701743,3403.1,3403.0,9.44241301]
[1762627785317,0.27696456,3403.1,3403.0,9.44241301]
[1762627785938,0.27696456,3403.1,3403.0,11.19783408]
[1762627790055,0.27696456,3403.1,3403.0,16.37095835]
[1762627790256,0.002,3403.1,3403.0,16.37095835]
[1762627790880,0.002,3403.1,3403.0,16.77646235]
[1762627792396,0.002,3403.5,3403.4,3.38923823]
[1762627792397,1e-08,3403.5,3403.4,3.38923823]
[1762627792690,0.005,3403.9,3403.8,4.19760494]
[1762627792856,0.005,3403.9,3403.8,13.68172919]
[1762627793191,0.005,3403.9,3403.8,14.26471449]
[1762627795597,1e-08,3403.9,3403.8,14.26471449]
[1762627795800,1e-08,3403.9,3403.8,10.81021851]
[1762627796004,1e-08,3403.9,3403.8,12.4948388]
[1762627796706,1e-08,3403.9,3403.8,12.0893348]
[1762627797607,0.00200001,3403.9,3403.8,12.4948388]
[1762627801410,0.002,3404.3,3404.2,4.03195173]
[1762627801411,1e-08,3404.3,3404.2,4.03195173]
[1762627801658,1e-08,3404.3,3404.2,10.961688]
[1762627801931,1e-08,3404.3,3404.2,7.06677331]
[1762627802136,1e-08,3404.3,3404.2,7.18444372]
[1762627802633,1e-08,3404.3,3404.2,7.33084372]
[1762627802995,1e-08,3404.3,3404.2,7.73634772]
[1762627803525,1e-08,3404.3,3404.2,7.33084372]
[1762627804293,1e-08,3404.3,3404.2,6.83394372]
[1762627805899,1e-08,3404.3,3404.2,6.64224372]
[1762627806824,1e-08,3404.3,3404.2,6.14504372]
[1762627807439,1e-08,3404.3,3404.2,7.13914372]
[1762627807645,1e-08,3404.3,3404.2,6.64224372]
[1762627808391,1e-08,3404.3,3404.2,6.14504372]
[1762627810343,0.27417893,3404.3,3404.2,6.14504372]
[1762627810500,0.27417893,3404.3,3404.2,4.46133014]
[1762627811452,0.27417893,3404.3,3404.2,4.95853014]
[1762627811662,0.27417893,3404.3,3404.2,5.45543014]
[1762627812361,0.27417893,3404.3,3404.2,9.19775971]
[1762627814050,0.27417893,3404.3,3404.2,8.20365971]
[1762627814866,0.27417893,3404.3,3404.2,8.70085971]
[1762627815063,0.27417893,3404.3,3404.2,11.17280289]
[1762627815218,1e-08,3404.3,3404.2,11.17280289]
[1762627815417,0.27446901,3404.3,3404.2,11.17280289]
[1762627816340,0.27446901,3404.3,3404.2,16.22685504]
[1762627817465,0.27446901,3404.3,3404.2,15.72995504]
[1762627818963,0.27446901,3404.3,3404.2,16.22685504]
[1762627819147,0.27446901,3404.3,3404.2,15.72995504]
[1762627820468,0.002,3404.6,3404.5,7.99134103]
[1762627820639,0.002,3404.6,3404.5,14.57912189]
[1762627821363,0.002,3404.6,3404.5,9.52506974]
[1762627822474,0.002,3404.6,3404.5,10.02196974]
[1762627822677,0.002,3404.6,3404.5,9.52506974]
[1762627823456,0.002,3404.6,3404.5,5.66506976]
[1762627824798,0.002,3404.6,3404.5,5.69444264]
[1762627824959,0.002,3404.6,3404.5,6.16196976]
[1762627825164,0.002,3404.6,3404.5,7.42168176]
[1762627825592,0.002,3404.6,3404.5,6.92478176]
[1762627825795,0.002,3404.6,3404.5,7.42168176]
[1762627826091,0.002,3404.6,3404.5,6.92478176]
[1762627826262,0.002,3404.6,3404.5,7.42168176]
[1762627827159,0.002,3404.6,3404.5,7.82718576]
[1762627828098,0.002,3404.6,3404.5,7.68078576]
[1762627828294,0.002,3404.6,3404.5,12.73483791]
[1762627828481,0.002,3404.6,3404.5,7.68078576]
[1762627832481,0.005,3404.9,3404.5,7.68078576]
[1762627832482,0.005,3404.9,3404.8,2.93703007]
[1762627832684,0.005,3404.9,3404.8,11.70486421]
[1762627832882,0.005,3404.9,3404.8,12.19266421]
[1762627833578,0.1694,3404.9,3404.8,11.23766421]
[1762627833778,0.2696,3404.9,3404.8,4.19674207]
[1762627834309,0.1694,3404.9,3404.8,4.19674207]
[1762627834608,0.005,3404.9,3404.8,9.25079422]
[1762627835101,0.005,3404.9,3404.8,9.71799422]
[1762627836108,0.005,3404.9,3404.8,10.20579422]
[1762627836403,0.005,3404.9,3404.8,11.81379757]
[1762627838076,0.005,3404.9,3404.8,11.96019757]
[1762627839196,0.005,3404.9,3404.8,6.90614542]
[1762627839506,0.005,3404.9,3404.8,11.47239757]
[1762627839807,0.005,3404.9,3404.8,11.96019757]
[1762627841513,0.1694,3404.9,3404.8,5.95114542]
[1762627841675,0.1694,3404.9,3404.8,4.34314207]
[1762627841876,0.005,3404.9,3404.8,4.34314207]
[1762627842072,0.1716,3404.9,3404.8,4.34314207]
[1762627842512,0.005,3404.9,3404.8,4.34314207]
[1762627844556,0.28015851,3404.9,3404.8,4.82074207]
[1762627844740,0.28015851,3404.9,3404.8,7.37185064]
[1762627846784,0.28015851,3404.9,3404.8,6.90105064]
[1762627849838,0.28015851,3404.9,3404.8,6.42345064]
[1762627850572,0.28015851,3404.9,3404.8,6.90105064]
[1762627851240,0.28015851,3404.9,3404.8,6.42345064]
[1762627853130,0.28033327,3404.9,3404.8,6.42345064]
[1762627855147,0.28033327,3404.9,3404.8,6.90105064]
[1762627856571,0.28033327,3404.9,3404.8,7.37185064]
[1762627859839,0.28033327,3404.9,3404.8,12.42590279]
[1762627860154,1e-08,3404.9,3404.8,12.42590279]
[1762627863479,1e-08,3404.9,3404.8,11.95510279]
[1762627865008,1e-08,3404.9,3404.8,11.47750279]
[1762627865311,1e-08,3404.9,3404.8,9.39719422]
[1762627865885,1e-08,3404.9,3404.8,9.86719422]
[1762627866607,0.26460001,3404.9,3404.8,4.34314207]
[1762627866978,0.16440001,3404.9,3404.8,4.34314207]
[1762627867973,1e-08,3404.9,3404.8,4.81314207]
[1762627868172,1e-08,3404.9,3404.8,6.91186542]
[1762627869077,0.26460001,3404.9,3404.8,11.01911757]
[1762627869274,0.26460001,3404.9,3404.8,9.39719422]
[1762627869503,1e-08,3404.9,3404.8,9.86719422]
[1762627870203,1e-08,3404.9,3404.8,9.39719422]
[1762627870544,1e-08,3404.9,3404.8,9.86719422]
[1762627871116,1e-08,3404.9,3404.8,11.82743757]
[1762627871332,1e-08,3404.9,3404.8,12.30423757]
[1762627871643,1e-08,3404.9,3404.8,12.30523757]
[1762627872804,1e-08,3404.9,3404.8,12.4228886]
[1762627876560,3.098,3408.7,3405.2,2.93659927]
[1762627876773,0.3839,3407.7,3405.8,2.93616771]
[1762627876968,0.1052,3405.9,3405.8,9.24993186]
[1762627877173,0.005,3405.9,3405.8,8.46021986]
[1762627877347,0.005,3405.9,3405.8,10.93855137]
[1762627877750,0.005,3405.9,3405.8,11.12205137]
[1762627878131,0.005,3405.9,3405.8,11.59885137]
[1762627878368,0.005,3405.9,3405.8,11.23025286]
[1762627878674,0.005,3406.9,3405.9,4.1957935]
[1762627878971,0.3839,3406.6,3406.5,2.93556436]
[1762627879159,0.1644,3406.6,3406.5,2.93556436]
[1762627880536,0.5461,3406.6,3406.5,2.93556436]
[1762627881067,0.005,3406.9,3406.8,2.93530585]
[1762627881273,0.3889,3406.9,3406.8,2.93530585]
[1762627881568,0.5533,3406.9,3406.8,2.93530585]
[1762627882932,0.3889,3406.9,3406.5,5.16225364]
[1762627883131,0.3889,3406.9,3406.7,2.93539202]
[1762627883132,0.3839,3406.8,3406.7,2.93539202]
[1762627883549,0.5483,3406.8,3406.7,2.93539202]
[1762627884693,0.1644,3406.8,3406.7,2.93539202]
[1762627884856,0.005,3406.9,3406.8,2.93530585]
[1762627885293,0.1694,3406.9,3406.8,2.93530585]
[1762627885451,0.005,3406.9,3406.8,3.97270585]
[1762627885790,0.005,3406.9,3406.8,4.36795258]
[1762627886087,0.005,3406.9,3406.8,3.89795258]
[1762627886290,0.005,3406.9,3406.8,4.36795258]
[1762627886454,0.1694,3406.9,3406.8,3.50270585]
[1762627886659,0.1694,3406.9,3406.8,3.08170585]
[1762627887192,0.1694,3406.9,3406.8,3.46340585]
[1762627887382,0.5511,3406.9,3406.8,3.08170585]
[1762627887555,0.005,3406.9,3406.8,3.08170585]
[1762627887879,0.1694,3406.9,3406.8,3.08170585]
[1762627888451,0.1694,3406.9,3406.8,4.091411]
[1762627888685,0.44330917,3406.9,3406.8,2.93530585]
[1762627888865,0.27890917,3406.9,3406.8,2.93530585]
[1762627890177,0.82500917,3406.9,3406.2,2.93582291]
[1762627890489,0.66160917,3406.8,3406.7,2.93539202]
[1762627891794,0.66157843,3406.8,3406.7,2.93539202]
[1762627892025,0.66157843,3406.8,3406.1,1.259712]
[1762627892185,0.65780584,3406.7,3406.6,2.93547818]
[1762627892804,0.82220584,3406.7,3406.6,2.93547818]
[1762627893015,0.82000584,3406.7,3406.6,2.93547818]
[1762627893205,0.43830584,3406.7,3406.6,2.93547818]
[1762627893792,0.82000584,3406.7,3406.6,2.93547818]
[1762627894029,0.82000584,3406.7,3405.9,0.001]
[1762627894326,0.43450584,3406.6,3406.3,2.93573405]
[1762627894478,0.27390584,3406.5,3406.3,2.93573405]
[1762627894674,0.65780584,3406.4,3405.9,0.001]
[1762627894879,0.3839,3406.0,3405.9,2.9370815]
[1762627895109,0.65780584,3406.0,3405.9,2.9370815]
[1762627895314,0.82220584,3406.0,3405.9,2.9370815]
[1762627895915,0.82220584,3406.0,3405.9,0.001]
[1762627896316,1.19800092,3406.0,3405.9,0.001]
[1762627896619,5.01630893,3406.0,3405.9,0.001]
[1762627897587,5.01652602,3406.0,3405.9,0.001]
[1762627898288,2.93648069,3405.5,3404.8,2.938009]
[1762627898584,0.4841,3404.9,3404.8,2.938009]
[1762627898811,0.75822293,3404.9,3404.8,2.938009]
[1762627899687,0.27412293,3404.9,3404.8,2.938009]
[1762627900087,0.43852293,3404.9,3404.8,2.938009]
[1762627900699,0.27412293,3404.9,3404.8,3.430909]
[1762627901187,0.27412293,3404.9,3404.8,3.577309]
[1762627901394,0.1002,3405.3,3405.2,2.93668506]
[1762627901611,0.53851514,3405.3,3405.2,2.93668506]
[1762627901786,0.27391514,3405.3,3405.2,3.42958506]
[1762627901993,0.27391514,3405.3,3405.2,2.93668506]
[1762627903329,0.43831514,3405.3,3405.2,2.93668506]
[1762627904853,0.27391514,3405.3,3405.2,2.93668506]
[1762627905541,0.43831514,3405.3,3405.2,2.93668506]
[1762627906941,0.43817127,3405.3,3405.2,2.93668506]
[1762627908007,0.27377127,3405.3,3405.2,3.42978506]
[1762627909731,0.27377127,3405.3,3405.2,2.93668506]
[1762627909930,0.43817127,3405.3,3405.2,2.93668506]
[1762627910145,0.27377127,3405.3,3405.2,2.93668506]
[1762627910441,0.43817127,3405.3,3405.2,2.93668506]
[1762627910643,0.81987127,3405.3,3405.2,2.93668506]
[1762627911347,0.43817127,3405.3,3405.2,2.93668506]
[1762627913659,0.81987127,3405.3,3405.1,2.93776204]
[1762627913814,0.1464,3405.5,3405.1,2.93776204]
[1762627913815,0.82207127,3405.2,3405.1,2.93776204]
[1762627914453,0.65547127,3405.2,3405.1,2.93776204]
[1762627919660,0.82207127,3405.2,3405.1,0.001]
[1762627920281,1.1979298,3405.2,3405.1,0.001]
[1762627920581,4.13461486,3405.2,3405.1,0.001]
[1762627921276,1.1979298,3405.2,3405.1,0.001]
[1762627921482,0.82207127,3405.2,3405.1,0.001]
[1762627921683,3.75875633,3405.2,3405.1,0.001]
[1762627924283,0.82207127,3405.2,3405.1,0.001]
[1762627924484,0.65547127,3405.2,3405.1,0.001]
[1762627924690,0.42017127,3405.2,3405.1,2.93777131]
[1762627927164,0.27377127,3405.2,3405.1,3.40907131]
[1762627927365,0.27377127,3405.2,3405.1,0.4723]
[1762627927691,0.27377127,3405.2,3405.1,2.93777131]
[1762627928481,0.43817127,3405.2,3405.1,2.93777131]
[1762627929882,0.27377127,3405.2,3405.1,2.93777131]
[1762627931980,0.27377127,3405.2,3405.1,0.001]
[1762627932186,0.27377127,3405.2,3405.1,2.93777131]
[1762627933192,0.27377127,3405.2,3405.1,3.40907131]
[1762627933793,0.27377127,3405.2,3405.1,2.93777131]
[1762627934265,0.43817127,3405.2,3405.1,2.93777131]
[1762627934558,0.27377127,3405.2,3405.1,2.93777131]
[1762627935397,0.27377127,3405.2,3405.1,3.40907131]
[1762627936268,0.1464,3405.4,3405.3,2.93659883]
[1762627936467,0.42168779,3405.4,3405.3,2.93659883]
[1762627937488,0.58608779,3405.4,3405.3,2.93659883]
[1762627938002,0.42168779,3405.4,3405.3,3.40789883]
[1762627938202,0.42168779,3405.4,3405.3,3.88319883]
[1762627938364,0.42168779,3405.4,3405.3,3.40789883]
[1762627939582,0.42168779,3405.4,3405.3,3.88319883]
[1762627940205,0.42168779,3405.4,3405.3,3.40789883]
[1762627940403,0.27528779,3405.4,3405.3,3.40789883]
[1762627941004,0.27528779,3405.4,3405.3,3.88319883]
[1762627944714,0.27528779,3405.4,3405.3,10.43478772]
[1762627946513,0.27528779,3405.4,3405.3,3.88319883]
[1762627948909,0.27528779,3405.4,3405.3,3.88419883]
[1762627949102,0.27528779,3405.4,3405.3,3.40889883]
[1762627949896,0.27528779,3405.4,3405.3,3.88419883]
[1762627952143,0.27528779,3405.4,3405.3,2.93759883]
[1762627952330,0.27528779,3405.4,3405.3,3.39539883]
[1762627952793,0.27528779,3405.4,3405.3,3.89209883]
[1762627953296,0.27528779,3405.4,3405.3,3.39539883]
[1762627954820,0.43968779,3405.4,3405.3,0.001]
[1762627955027,0.43968779,3405.4,3405.3,2.93759883]
[1762627955191,0.43968779,3405.4,3405.3,3.39539883]
[1762627955192,0.27528779,3405.4,3405.3,3.39539883]
[1762627955389,0.27528779,3405.4,3405.3,3.89209883]
[1762627956434,0.27528779,3405.4,3405.3,10.165701]
[1762627956605,0.27528779,3405.4,3405.3,9.09064562]
[1762627957047,0.002,3405.9,3405.8,2.93616771]
[1762627957211,0.002,3405.9,3405.8,8.4461145]
[1762627957415,0.002,3405.9,3405.8,10.73266645]
[1762627957720,0.002,3405.9,3405.8,11.99237845]
[1762627960225,0.002,3405.9,3405.8,12.39788245]
[1762627961405,0.005,3406.9,3406.8,2.93530585]
[1762627961620,0.005,3406.9,3406.8,8.63145264]
[1762627961817,0.005,3406.9,3406.8,9.12815264]
[1762627963562,0.1464,3407.3,3407.2,2.93496125]
[1762627963714,0.1002,3408.0,3407.5,2.93465263]
[1762627964041,0.1002,3408.0,3406.9,7.98736649]
[1762627964042,0.1644,3407.6,3407.3,2.93480608]
[1762627964211,0.1644,3407.6,3407.5,2.93470286]
[1762627964618,0.5461,3407.6,3407.5,2.93470286]
[1762627964826,0.1644,3407.6,3407.5,2.93470286]
[1762627965046,0.1644,3407.6,3406.3,0.1984]
[1762627965047,0.5461,3407.6,3406.3,0.1984]
[1762627965348,0.0038,3407.4,3407.3,2.93487512]
[1762627965715,0.3877,3407.4,3406.6,2.93547818]
[1762627966046,0.1606,3407.3,3406.6,2.93547818]
[1762627966245,0.1606,3407.3,3406.4,5.05214679]
[1762627966450,0.3839,3407.2,3406.4,5.05214679]
[1762627966614,0.002,3406.9,3406.8,2.93530585]
[1762627967031,0.1664,3406.9,3406.8,2.93530585]
[1762627967926,0.2581,3406.9,3406.8,2.93530585]
[1762627968224,0.64,3406.9,3406.8,2.93530585]
[1762627968613,0.2581,3406.9,3406.8,2.93530585]
[1762627969058,0.53195322,3406.9,3406.8,2.93530585]
[1762627976160,0.91385322,3406.9,3406.8,2.93530585]
[1762627976360,1.06025322,3406.9,3406.8,2.93530585]
[1762627976728,0.67835322,3406.9,3406.8,2.93530585]
[1762627977829,0.91385322,3406.9,3405.9,1.259712]
[1762627978052,0.0038,3406.7,3406.5,2.93556025]
[1762627978362,0.27385322,3406.6,3406.5,2.93556025]
[1762627978658,0.43465322,3406.6,3406.4,2.93561387]
[1762627978826,0.27385322,3406.5,3406.4,2.93561387]
[1762627979026,0.43845322,3406.5,3406.4,2.93561387]
[1762627980968,0.82015322,3406.5,3405.7,0.69]
[1762627981266,0.0937,3406.9,3405.8,5.05214679]
[1762627981267,0.27385322,3406.4,3405.8,5.05214679]
[1762627981564,0.27385322,3406.3,3406.2,2.93582291]
[1762627981931,0.43845322,3406.3,3406.2,2.93582291]
[1762627986642,0.27385322,3406.3,3406.2,3.90202291]
[1762627988182,0.002,3406.9,3406.5,2.93556436]
[1762627988341,0.002,3406.9,3406.8,2.93530585]
[1762627989991,0.002,3406.9,3406.8,3.42740585]
[1762627990386,0.002,3406.9,3406.8,3.90150585]
[1762627990596,0.002,3406.9,3406.8,3.42740585]
[1762627990783,0.002,3406.9,3406.8,3.90150585]
[1762627993178,0.002,3406.9,3406.8,3.42740585]
[1762627993686,0.1664,3406.9,3406.8,2.93530585]
[1762627994903,0.002,3406.9,3406.8,2.93530585]
[1762627996092,0.002,3406.9,3406.8,3.42740585]
[1762627996600,0.002,3406.9,3406.8,3.90150585]
[1762627997101,0.002,3406.9,3406.8,3.9308589]
[1762627997304,0.002,3406.9,3406.8,5.41623869]
[1762627997512,0.002,3406.9,3406.8,5.38688564]
[1762627998321,0.002,3406.9,3406.8,5.53328564]
[1762628000224,0.27684729,3406.9,3406.8,5.53328564]
[1762628001274,0.27684729,3406.9,3406.8,4.04790585]
[1762628007905,0.27684729,3406.9,3406.8,3.57380585]
[1762628009029,0.27684729,3406.9,3406.8,4.04790585]
[1762628014833,0.27684729,3406.9,3406.8,3.57380585]
[1762628015374,0.27684729,3406.9,3406.8,4.03080585]
[1762628015932,0.27703581,3406.9,3406.8,4.03080585]
[1762628020990,0.27703581,3406.9,3406.8,3.57380585]
[1762628021287,0.27703581,3406.9,3406.8,4.03080585]
[1762628023394,0.27703581,3406.9,3406.8,7.89080583]
[1762628024591,0.27703581,3406.9,3406.8,9.81075408]
[1762628025189,0.1464,3407.7,3407.6,2.93461673]
[1762628025396,0.3889,3407.9,3407.8,2.9344445]
[1762628025397,0.005,3407.9,3407.8,2.9344445]
[1762628025695,0.1514,3407.9,3407.8,2.9344445]
[1762628025897,0.3158,3407.9,3407.8,2.9344445]
[1762628027261,0.005,3407.9,3407.8,2.9344445]
[1762628028210,0.005,3407.9,3407.8,3.4068445]
[1762628028415,0.1694,3407.9,3407.8,2.9344445]
[1762628029214,0.005,3407.9,3407.8,2.9344445]
[1762628030719,0.2696,3407.9,3407.8,2.9344445]
[1762628032875,0.2696,3407.9,3407.6,2.93454455]
[1762628033090,0.4869,3407.9,3407.7,2.93449637]
[1762628033395,0.4869,3407.9,3407.8,2.9344445]
[1762628033770,0.6535,3407.9,3407.8,2.9344445]
[1762628034103,0.2718,3407.9,3407.8,2.9344445]
[1762628036024,0.7320672,3407.9,3407.8,2.9344445]
[1762628036328,1.1116672,3407.9,3407.8,2.9344445]
[1762628036524,0.7320672,3407.9,3407.8,2.9344445]
[1762628037206,0.2801427,3407.9,3407.8,2.9344445]
[1762628037415,0.2801427,3407.9,3407.8,4.08287938]
[1762628037924,0.2801427,3407.9,3407.8,4.55527938]
[1762628038288,0.2801427,3407.9,3407.8,4.70167938]
[1762628039116,0.28012178,3407.9,3407.8,4.70167938]
[1762628039605,0.28212178,3407.9,3407.8,4.22927938]
[1762628040011,0.44652178,3407.9,3407.8,0.1464]
[1762628040215,0.44652178,3407.9,3407.8,3.0808445]
[1762628041019,0.44652178,3407.9,3407.7,2.93446347]
[1762628041020,0.54672178,3407.9,3407.7,2.93446347]
[1762628041219,0.27512178,3407.8,3407.7,2.93446347]
[1762628041527,0.44172178,3407.8,3407.7,2.93446347]
[1762628041732,0.27512178,3407.8,3407.7,0.64700663]
[1762628041934,0.27512178,3407.8,3407.7,4.53843725]
[1762628042458,0.43952178,3407.8,3407.7,2.93453062]
[1762628042952,0.27512178,3407.8,3407.7,2.93453062]
[1762628044555,0.43952178,3407.8,3407.7,2.93453062]
[1762628045052,0.43952178,3407.8,3407.3,3.1250146]
[1762628045053,0.43952178,3407.8,3407.6,2.93458487]
[1762628045262,0.27512178,3407.7,3407.6,2.93458487]
[1762628045422,0.27512178,3407.7,3407.6,4.00741583]
[1762628045750,0.43952178,3407.7,3407.6,4.00741583]
[1762628045960,0.43952178,3407.7,3406.9,0.001]
[1762628046112,0.0038,3407.5,3407.2,2.93490174]
[1762628046307,0.27512178,3407.4,3407.2,2.93496125]
[1762628046507,0.27512178,3407.3,3407.2,2.93496125]
[1762628046905,0.43952178,3407.3,3407.2,2.93496125]
[1762628047732,0.43952178,3407.3,3407.1,2.9350274]
[1762628047937,0.44164808,3407.2,3407.0,2.93511313]
[1762628048246,0.27504808,3407.1,3407.0,3.27616444]
[1762628048826,0.27504808,3407.1,3407.0,3.75866444]
[1762628050735,0.27504808,3407.1,3407.0,5.49277644]
[1762628051734,0.27504808,3407.1,3407.0,5.63917644]
[1762628053548,0.27504808,3407.1,3407.0,6.52878044]
[1762628055875,0.27504808,3407.1,3407.0,10.38878042]
[1762628058863,0.002,3407.3,3407.2,2.93496125]
[1762628059059,0.007,3407.9,3407.8,2.9344445]
[1762628059494,0.1714,3407.9,3407.8,3.0808445]
[1762628059702,0.1694,3407.9,3407.8,3.0808445]
[1762628060263,0.2696,3407.9,3407.8,0.1464]
[1762628060596,0.6513,3407.9,3407.8,2.9344445]
[1762628062960,0.6513,3407.9,3407.7,2.93451138]
[1762628063190,0.6513,3407.9,3407.6,0.1464]
[1762628063191,0.1052,3407.9,3407.8,2.9344445]
[1762628063415,0.1052,3407.9,3407.7,2.93450766]
[1762628063901,0.1644,3407.8,3407.7,2.93450766]
[1762628065015,0.5461,3407.8,3407.7,2.93450766]
[1762628065518,0.5461,3407.8,3407.4,3.85999998]
[1762628065823,0.3839,3407.7,3407.5,2.93461682]
[1762628066191,0.1644,3407.6,3407.5,2.93461682]
[1762628067096,0.2516,3407.9,3407.8,4.1941565]
[1762628067097,0.005,3407.9,3407.8,4.1941565]
[1762628067423,0.005,3407.9,3407.8,10.34286319]
[1762628067626,0.005,3407.9,3407.8,10.8030689]
[1762628070424,0.005,3407.9,3407.8,14.66306888]
[1762628070590,0.005,3407.9,3407.8,17.31959861]
[1762628070790,1e-08,3407.9,3407.8,17.72510261]
[1762628070987,0.1514,3408.9,3408.8,2.93358366]
[1762628070988,0.005,3408.9,3408.8,2.93358366]
[1762628071326,0.2797143,3408.9,3408.8,8.46149035]
[1762628071509,0.2797143,3408.9,3408.6,2.93367649]
[1762628071510,0.4441143,3408.9,3408.5,5.04540669]
[1762628071713,0.1694,3408.9,3408.8,3.19751681]
[1762628071918,0.44399047,3408.9,3408.8,3.19751681]
[1762628072305,0.54419047,3408.9,3408.8,3.05111681]
[1762628072846,0.92589047,3408.9,3408.8,0.11753315]
[1762628073012,0.92589047,3408.9,3408.8,3.05111681]
[1762628073413,0.54419047,3408.9,3408.8,3.05111681]
[1762628076055,0.54419047,3408.9,3408.8,0.11753315]
[1762628076351,0.54419047,3408.9,3408.8,3.05111681]
[1762628077055,0.54619047,3408.9,3408.8,3.05111681]
[1762628081953,0.28159047,3408.9,3408.8,3.05111681]
[1762628082139,0.28159047,3408.9,3408.8,3.54271681]
[1762628082766,0.28159047,3408.9,3408.8,3.05111681]
[1762628085369,0.28159047,3408.9,3408.8,8.0965235]
[1762628085672,0.28159047,3408.9,3408.8,3.05111681]
[1762628088089,0.28159047,3408.9,3408.8,3.51671681]
[1762628088279,0.28159047,3408.9,3408.8,9.2075235]
[1762628088675,0.28159047,3408.9,3408.8,11.10101039]